[Event "2nd Bieszczady Chess-ch A 2022"]
[Site "Bystre"]
[Date "2022.07.20"]
[Round "4.2"]
[White "Kyc, Jerzy"]
[Black "Lewtak, Damian"]
[Result "0-1"]
[ECO "B06"]
[WhiteElo "2203"]
[BlackElo "2397"]
[Annotator "TA"]
[PlyCount "78"]
[EventDate "2022.07.17"]
[EventCountry "POL"]
[SourceTitle "playchess.com"]
[Source "ChessBase"]
[SourceQuality "1"]
[TimeControl "5400+30"]

{[%evp 15,78,63,74,50,51,58,76,63,73,73,88,89,84,53,85,73,97,103,180,145,141,152,165,0,0,0,0,-132,-30,-220,-235,-452,-436,-427,-305,-324,-265,-277,-277,-336,-297,-331,-300,-379,-370,-1253,-1270,-1259,-1239,-1221,-1228,-1179,-1081,-1606,-1148,-29986,-29987,-29989,-29990,-29990,-29986,-29986,-29987,-29989,-29990]} 1. e4 {[%emt 0:00:05]} g6 {[%emt 0:00:40]} 2. d4 {[%emt 0:00:05][%cal Bd2d4,Bd4d5][%mdl 32]} Bg7 {[%emt 0:00:06]} 3. c4 {[%emt 0:00:20]} d6 {[%emt 0:00:04]} 4. Nc3 {[%emt 0:00:04]} e5 {[%emt 0:02:09]} 5. Be3 {[%emt 0:00:09]} Nc6 {[%emt 0:01:41]} 6. d5 {[%emt 0:00:33]} Nd4 {[%emt 0:03:17]} 7. Nge2 {[%emt 0:04:37]} Nxe2 {[%emt 0:03:29]} 8. Bxe2 {[%emt 0:03:13]} f5 {[%emt 0:00:12]} 9. f3 {[%emt 0:02:08] A42: Modern Defence: Averbakh Variation.} Nf6 {[%emt 0:05:22] is the legacy move (9...Bh6).} 10. O-O {[%emt 0:03:17]} f4 {[%emt 0:00:24]} 11. Bf2 {[%emt 0:00:01] [#] White is better.} Bf8 $146 {[%emt 0:08:12]} ({Predecessor:} 11... Nh5 12. Qd2 O-O 13. c5 Qg5 14. Rfc1 Rf7 15. cxd6 cxd6 16. Nb5 Qd8 17. Qb4 Bf8 18. Nxa7 {1-0 (25) Louis,V (2199)-Mueller,F (2040) Germany 2002}) 12. b4 {[%emt 0:00:14]} g5 {[%emt 0:00:46]} 13. c5 {[%emt 0:01:52]} h5 {[%emt 0:01:24]} 14. cxd6 {[%emt 0:00:23]} cxd6 {[%emt 0:01:39]} 15. Rc1 {[%emt 0:00:14] aiming for Nb5.} Kf7 {[%emt 0:04:55]} 16. Nb5 {[%emt 0:03:48]} Ne8 {[%emt 0:01:25] Inhibits Nc7.} (16... Bd7 $16) 17. Nxa7 $18 {[%emt 0:01:24]} (17. Bxa7 $6 Bd7 $14) 17... Bd7 {[%emt 0:00:07]} 18. b5 {[%emt 0:20:23]} Rg8 {[%emt 0:01:27]} 19. Kh1 $2 {[%emt 0:28:57]} (19. b6 $18) 19... g4 $1 $11 {[%emt 0:03:40] ...g3 is the strong threat.} 20. g3 {[%emt 0:07:50] Hoping for gxf4.} Bh6 {[%emt 0:04:19]} 21. Rc4 {[%emt 0:05:23] [#]} (21. fxg4 $11 {keeps the balance.} hxg4 22. Nc6) 21... Nf6 {[%emt 0:07:50]} (21... h4 $1 $17 {[%cal Rh4g3] And now ...hxg3 would win.} 22. fxg4 hxg3) 22. b6 $2 {[%emt 0:01:07] Loses the game.} (22. gxf4 $11 exf4 23. Bd4) 22... h4 $19 {[%emt 0:00:59]} 23. Qb3 $2 {[%emt 0:06:03]} (23. fxg4 {might work better.} hxg3 24. hxg3 fxg3 25. Bxg3 Qxb6 26. Qb3 (26. Bh4 $2 Bf4 $19) 26... Qxb3 27. axb3) 23... hxg3 {[%emt 0:03:15] White must now prevent ...g2+.} (23... gxf3 24. Qxf3 hxg3 25. hxg3 $15) 24. hxg3 {[%emt 0:00:05]} Rh8 {[%emt 0:02:56]} 25. fxg4 {[%emt 0:03:38]} Qg8 {[%emt 0:01:33]} (25... Nxg4 26. Rc7 Kg6 27. Kg1 $15 (27. Rxb7 $2 Qg5 $19)) 26. Kg2 {[%emt 0:01:34] [#]} (26. Rc7 $2 Bg7+ 27. Kg2 Qh7 28. Rxd7+ Kf8 $19) 26... Bg5 $1 {[%emt 0:02:58] Threatens to win with ...Qh7.} (26... Qg6 27. Rc7 $11) 27. Rg1 {[%emt 0:01:04]} Qh7 {[%emt 0:01:42]} ({Stronger than} 27... Bxg4 28. Rc7+ Kf8 29. Bxg4 Nxg4 30. Kf1 $15 (30. Kf3 $2 Qg6 $19)) (27... Nxg4 28. Bxg4 Bxg4 29. Rc7+ Kf8 30. gxf4 Bxf4 31. Kf1 $11) 28. gxf4 {[%emt 0:01:18]} Nxe4 {[%emt 0:02:15]} ({Not} 28... Bxf4 29. Qd3 $17) 29. Be1 {[%emt 0:01:32]} Bxf4 {[%emt 0:04:37][%cal Bg5f4,Bf4h2,Bh2g3][%mdl 32] Chess con chili.} ({Avoid the trap} 29... Nc5 $2 30. Qg3 exf4 31. Rxf4+ Kg8 32. Rf5 Bxf5 33. gxf5 Qxf5 34. Qg4 $19) 30. Rc7 $2 {[%emt 0:00:31]} (30. Qd3 Qh2+ 31. Kf1) 30... Kg8 {[%emt 0:06:09][%cal Of4e3]} 31. Kf1 {[%emt 0:03:21]} Rf8 {[%emt 0:01:39] ( -> ...Ng3+)} 32. Bf3 {[%emt 0:00:36]} Bh2 {[%emt 0:04:38]} 33. Rg2 {[%emt 0:00:38]} Ng5 {[%emt 0:00:19]} 34. Rf2 {[%emt 0:00:01]} Bg3 {[%emt 0:01:23]} 35. Qe3 {[%emt 0:00:47]} Nxf3 {[%emt 0:01:56][%mdl 64] Remove Defender. Black mates.} 36. Rxf3 {[%emt 0:00:24]} Qh1+ {[%emt 0:00:17]} 37. Ke2 {[%emt 0:00:01]} Rh2+ {[%emt 0:00:10]} 38. Bf2 {[%emt 0:01:17]} Rxf2+ {[%emt 0:00:20][%mdl 64] X-Ray Attack} 39. Rxf2 {[%emt 0:00:13]} Rxf2+ {[%emt 0:00:13] Weighted Error Value: White=0.80/Black=0.26 (precise)} 0-1

[Event "2nd Bieszczady Chess-ch A 2022"]
[Site "Bystre"]
[Date "2022.07.20"]
[Round "4.3"]
[White "Tymrakiewicz, Rafal"]
[Black "Karvatskyi, Oleksii"]
[Result "1/2-1/2"]
[ECO "A45"]
[WhiteElo "2205"]
[BlackElo "1804"]
[Annotator "TA"]
[PlyCount "68"]
[EventDate "2022.07.17"]
[EventCountry "POL"]
[SourceTitle "playchess.com"]
[Source "ChessBase"]
[SourceQuality "1"]
[TimeControl "5400+30"]

{[%evp 9,68,-29,-25,-25,0,-47,-20,-67,-56,-80,-69,-79,-85,-110,-75,-116,-121,-124,-114,-157,-150,-159,-140,-185,-168,-172,-78,-177,-185,-191,-137,-511,-491,-508,-490,-489,-423,-404,-384,-442,-450,-408,-427,-428,-427,-377,-428,-427,-427,-427,-416,-416,-369,-316,0,0,0,0,0,0,0]} 1. d4 {[%emt 0:01:27]} Nf6 {[%emt 0:00:37]} 2. Bg5 {[%emt 0:01:59]} d5 {[%emt 0:00:14]} 3. e3 {[%emt 0:00:31]} Nbd7 {[%emt 0:01:20]} 4. Nd2 {[%emt 0:01:00]} e5 {[%emt 0:19:27]} 5. c4 {[%emt 0:11:34]} exd4 {[%emt 0:01:24]} 6. exd4 {[%emt 0:00:25] D00: 1 d4 d5: Unusual lines.} dxc4 {[%emt 0:00:46] [#]} 7. Ngf3 $146 {[%emt 0:02:47]} (7. Bxc4 $11 {feels stronger.} Be7 8. Ngf3) ({Predecessor:} 7. Bxc4 Be7 8. Ngf3 O-O 9. O-O Nb6 10. Bb3 c6 11. Re1 h6 12. Bh4 Nbd5 13. Ne5 {1-0 (39) Labeckas,K (2355)-Vicas,M (2061) Panevezys 2013}) 7... b5 $15 {[%emt 0:09:55]} 8. a4 {[%emt 0:03:14]} (8. b3 $1 $11 {is more appropriate.}) 8... c6 $1 {[%emt 0:01:36]} 9. Be2 {[%emt 0:06:33]} Be7 {[%emt 0:01:25]} (9... Bb4 {with more complications.} 10. Ne5 Qc7 11. Nxd7 Ne4) 10. O-O {[%emt 0:01:12]} O-O $1 {[%emt 0:00:19]} 11. Re1 {[%emt 0:00:36]} Re8 {[%emt 0:02:21]} 12. Qc2 {[%emt 0:01:30]} Nd5 $1 {[%emt 0:02:08]} 13. Bxe7 {[%emt 0:12:15][%mdl 64] Remove Defender} Rxe7 {[%emt 0:00:21]} ({Don't play} 13... Qxe7 14. Bxc4 $1 {[%mdl 512]} Qf8 15. Rxe8 (15. axb5 Bb7 $18) 15... Qxe8 16. Re1 $18 (16. axb5 Bb7 $18)) 14. Bf1 {[%emt 0:00:10]} Rxe1 {[%emt 0:02:14]} 15. Rxe1 {[%emt 0:00:23]} N7f6 {[%emt 0:01:14][%cal Bd7f6,Bf6d5,Bd5c3][%mdl 32]} 16. Ne5 {[%emt 0:10:00]} Nb4 {[%emt 0:03:23][%csl LRc2,LRd4]} 17. Qc1 {[%emt 0:09:30]} Bf5 {[%emt 0:06:32]} (17... Be6 $19 {and Black stays clearly on top.} 18. Ndf3 Qd6) 18. Ndf3 {[%emt 0:03:15]} (18. b3 $17 {was necessary.}) 18... Nfd5 $36 {[%emt 0:00:32][%mdl 2048] Black is really pushing.} 19. g4 {[%emt 0:05:27]} Be6 {[%emt 0:01:56]} (19... Bc8 $19 {And now ...f6 would win.} 20. b3 cxb3 21. axb5 cxb5) 20. b3 $2 {[%emt 0:04:09][%mdl 8192]} (20. Ng5 $17 {is tougher.}) 20... cxb3 {[%emt 0:02:19]} 21. Nxc6 {[%emt 0:02:59]} Nxc6 {[%emt 0:00:42]} 22. Qxc6 {[%emt 0:00:42]} Rc8 {[%emt 0:02:19]} 23. Qxb5 {[%emt 0:01:11]} Nc3 {[%emt 0:00:53]} 24. Qh5 {[%emt 0:02:21]} g6 {[%emt 0:12:04]} 25. Qh6 {[%emt 0:03:05] Black must now prevent Ng5.} Qf8 {[%emt 0:01:13]} 26. Qd2 {[%emt 0:01:04]} Bd5 {[%emt 0:03:57]} 27. Ne5 {[%emt 0:01:48]} Qb4 {[%emt 0:01:23] ...b2 is the strong threat.} 28. Nd7 {[%emt 0:10:36]} b2 {[%emt 0:04:39]} 29. Nf6+ {[%emt 0:01:36]} Kg7 {[%emt 0:00:01]} 30. Nh5+ {[%emt 0:00:19]} Kh8 {[%emt 0:05:38]} (30... gxh5 31. Qg5+ Kf8 32. Qh6+ Kg8 33. Qg5+ Kh8 34. Qf6+ Kg8 35. Qg5+ Kh8 36. Qf6+ Kg8 37. Qg5+ $11) 31. Qf4 {[%emt 0:00:05] [#] Intending Qf6+ and mate.} Qf8 $2 {[%emt 0:01:25]} ({Not} 31... gxh5 32. Qe5+ f6 33. Qxf6+ Kg8 34. Qg5+ Kf7 35. Qf5+ Kg7 36. Qg5+ Kh8 37. Qf6+ Kg8 38. Qg5+ Kf7 39. Qf5+ Kg7 40. Qg5+ Kh8 41. Qf6+ $11) ({And not} 31... Ne2+ 32. Rxe2 gxh5 33. Qf6+ Kg8 34. Qg5+ Kh8 35. Qf6+ Kg8 36. Qg5+ Kh8 37. Qf6+ $11) (31... Qb6 $1 $19 32. a5 Qc6 33. Qe5+ f6 34. Nxf6 {[#]} Qe6 $1 35. Nxd5+ Qxe5 36. dxe5 Nxd5) 32. Qe5+ $11 {[%emt 0:01:28] The position is equal.} f6 $1 {[%emt 0:00:40]} 33. Nxf6 {[%emt 0:00:04]} Qg7 $1 {[%emt 0:00:14]} 34. Bd3 {[%emt 0:00:44] Prevents b1R.} Ne2+ {Weighted Error Value: White=0.44/Black=0.24 (precise)} 1/2-1/2

[Event "2nd Bieszczady Chess-ch A 2022"]
[Site "Bystre"]
[Date "2022.07.20"]
[Round "4.5"]
[White "Babiarz, Arkadiusz"]
[Black "Sygulski, Piotr"]
[Result "1-0"]
[ECO "B12"]
[WhiteElo "2027"]
[BlackElo "2013"]
[Annotator "TA"]
[PlyCount "49"]
[EventDate "2022.07.17"]
[EventCountry "POL"]
[SourceTitle "playchess.com"]
[Source "ChessBase"]
[SourceQuality "1"]
[TimeControl "5400+30"]

{[%evp 9,49,11,30,39,97,78,83,36,139,110,221,209,256,259,210,116,172,178,231,197,587,584,554,558,591,593,589,593,558,552,702,156,325,262,241,258,888,890,879,872,862,865]} 1. e4 {[%emt 0:00:30][%cal Be2e4,Be4e5][%mdl 32]} c6 {[%emt 0:00:43]} 2. d4 {[%emt 0:00:07]} d5 {[%emt 0:00:04]} 3. e5 {[%emt 0:01:03]} c5 {[%emt 0:00:15]} 4. dxc5 {[%emt 0:00:51]} e6 {[%emt 0:00:33]} 5. a3 {[%emt 0:01:10]} Nd7 {[%emt 0:03:51]} 6. Nf3 {[%emt 0:01:58] B12: Caro-Kann: Advance Variation.} Qc7 {[%emt 0:06:59] [#]} (6... Bxc5 $14 7. c4 Qc7) 7. b4 $1 $16 {[%emt 0:10:57]} Nxe5 {[%emt 0:03:33]} 8. Bb2 {[%emt 0:00:07]} (8. Bf4 $16 Nd3+ 9. Bxd3 Qxf4 10. Bb5+ Kd8 11. g3) 8... Nd7 {[%emt 0:06:04]} ({Black should try} 8... Nxf3+ $14 9. Qxf3 Bd7) 9. Bb5 {[%emt 0:06:58] c4 is the strong threat. White is more active.} Ne7 {[%emt 0:07:51]} (9... a6 $16) 10. O-O {[%emt 0:04:20] [#]} a6 $146 {[%emt 0:06:33] [#]} ({Predecessor:} 10... b6 11. Be5 Qb7 12. Nc3 Nc6 13. Re1 bxc5 14. Nxd5 Ndxe5 15. Nxe5 Bd7 16. Qf3 Rc8 17. Nxf7 {1-0 (28) Vasova,M (2047)-Radeva,V (1949) Plovdiv 2015}) 11. Ba4 {[%emt 0:00:29]} (11. Be5 $6 Qd8 $16) 11... Nc6 {[%emt 0:04:06]} 12. Qd3 {[%emt 0:12:05]} (12. c4 $18 dxc4 13. Nbd2) 12... b6 {[%emt 0:12:33]} (12... b5 $16 {keeps fighting.}) 13. Re1 $18 {[%emt 0:10:33]} Bb7 {[%emt 0:03:58]} (13... bxc5 $142 14. Qxd5 Bb7) 14. Nc3 {[%emt 0:06:54] Strongly threatening Nxd5.} Be7 $2 {[%emt 0:06:35] [#]} (14... O-O-O {is more resistant.}) 15. Nxd5 $1 {[%emt 0:07:56][%mdl 512]} exd5 {[%emt 0:00:16]} 16. Bxc6 {[%emt 0:00:06]} Bxc6 {[%emt 0:00:50]} 17. Bxg7 {[%emt 0:00:10]} Rg8 {[%emt 0:05:37]} 18. Qxh7 {[%emt 0:00:45]} O-O-O {[%emt 0:00:52]} 19. Rxe7 {[%emt 0:00:17]} Qf4 {[%emt 0:02:55]} 20. Ne5 $2 {[%emt 0:04:15]} (20. Nd4 $18 {and the rest is easy.} Qg4 21. Rxf7 (21. Nxc6 Rxg7 22. Qxg7 Qxg7 $15)) 20... Qg5 $2 {[%emt 0:05:45] A mistake that costs the game.} (20... Nxe5 $16 {might work better.} 21. Bxe5 Rxg2+ 22. Kxg2 (22. Kh1 Rxh2+ 23. Qxh2 d4+ 24. Kg1 Rg8+ 25. Kf1 Bb5+ 26. Ke1 Qe4+ 27. Kd2 Qe2+ 28. Kc1 Qe1+ 29. Kb2 Qc3+ 30. Kb1 Qe1+ 31. Kb2 Qc3+ 32. Kb1 Qe1+ 33. Kb2 $11) 22... Qg5+ 23. Bg3 Qxe7 24. Qf5+ (24. cxb6 d4+ 25. Kg1 Re8 $16) (24. b5 axb5 25. cxb6 d4+ 26. Kg1 Kb7 $14) 24... Qe6 25. Qxe6+ fxe6 26. cxb6 Kb7) 21. Nxc6 {[%emt 0:00:05]} Rxg7 {[%emt 0:00:12][%csl Gg7][%cal Rg5g2]} 22. Qh3 {[%emt 0:00:04]} Qf6 $2 {[%emt 0:00:11]} (22... Kc7 23. b5 (23. Nxd8 Qxe7 24. Nb7 Rg8 $18) 23... axb5) 23. Na7+ {[%emt 0:00:42] White is clearly winning.} Kc7 {[%emt 0:09:20]} 24. Rae1 {[%emt 0:00:17] And now c6 would win.} bxc5 {[%emt 0:03:35]} 25. bxc5 {[%emt 0:00:14] Weighted Error Value: White=0.36/Black=0.81} 1-0

[Event "2nd Bieszczady Chess-ch A 2022"]
[Site "Bystre"]
[Date "2022.07.20"]
[Round "4.6"]
[White "Bugajski, Robert"]
[Black "Palacki, Rafal"]
[Result "1/2-1/2"]
[ECO "A06"]
[WhiteElo "2075"]
[BlackElo "1832"]
[Annotator "TA"]
[PlyCount "103"]
[EventDate "2022.07.17"]
[EventCountry "POL"]
[SourceTitle "playchess.com"]
[Source "ChessBase"]
[SourceQuality "1"]
[TimeControl "5400+30"]

{[%evp 15,103,27,45,7,0,6,3,3,9,8,4,3,14,-8,-11,-35,-6,-11,-4,-12,0,-10,0,-5,-11,-26,-5,-9,-7,-15,-19,-23,-8,-99,-85,-89,-31,-45,0,0,0,0,0,0,0,0,0,0,0,0,0,0,0,0,0,0,0,0,0,0,0,0,0,0,0,0,0,-74,-74,-74,-74,-74,-74,-74,-74,-74,-74,-74,-74,-74,-74,-101,-101,-101,-8,-101,-101,-101,0,-101]} 1. Nf3 {[%emt 0:00:04]} d5 {[%emt 0:00:09]} 2. g3 {[%emt 0:00:11]} Nf6 {[%emt 0:01:11]} 3. Bg2 {[%emt 0:00:11]} Nc6 {[%emt 0:00:02]} 4. d4 {[%emt 0:02:47]} Bf5 {[%emt 0:00:55]} 5. O-O {[%emt 0:01:45]} e6 {[%emt 0:00:36]} 6. c4 {[%emt 0:03:13]} Be7 {[%emt 0:01:49]} 7. cxd5 {[%emt 0:00:33]} exd5 {[%emt 0:00:26]} 8. Nc3 {[%emt 0:00:51]} Ne4 {[%emt 0:04:56]} 9. Qb3 {[%emt 0:09:07] D02: 1 d4 d5 2 Nf3 sidelines, including 2...Nf6 3 g3 and 2...Nf6 3 Bf4.} Nxc3 {[%emt 0:00:53]} 10. bxc3 {[%emt 0:04:14]} Na5 {[%emt 0:00:52][%cal Bc6a5,Ba5c4,Bc4d6][%mdl 32]} 11. Qa4+ {[%emt 0:02:02]} c6 {[%emt 0:00:39]} 12. Ba3 {[%emt 0:02:48] [#]} Nc4 $146 {[%emt 0:05:45]} ({Predecessor:} 12... Bxa3 13. Qxa3 Nc4 14. Qc1 Be4 15. Nd2 Bxg2 16. Kxg2 Nxd2 17. Qxd2 O-O 18. Qd3 Re8 {½-½ (40) Orso,M (2380)-Kroll,O (2330) Aarhus 1992}) 13. Bxe7 {[%emt 0:02:09]} Qxe7 {[%emt 0:00:05]} 14. Rfe1 {[%emt 0:09:50][%cal Oe2e4]} (14. Nh4 $5 {[%cal Rh4f5]} Bd7 15. e4 $11) 14... Be4 {[%emt 0:03:22]} 15. Qd1 {[%emt 0:04:29]} O-O {[%emt 0:03:23]} 16. Nd2 {[%emt 0:00:36]} (16. e3 {seems wilder.} Rfe8 17. Nd2 Bxg2 18. Nxc4 Be4 19. Nd2) 16... Bxg2 {[%emt 0:06:13]} 17. Kxg2 {[%emt 0:04:29]} Nd6 {[%emt 0:00:16]} 18. Qc2 {[%emt 0:05:19]} Rfe8 {[%emt 0:07:24]} 19. e3 {[%emt 0:00:37]} Qe6 {[%emt 0:01:48]} 20. a4 {[%emt 0:03:26]} Re7 {[%emt 0:08:10]} 21. a5 {[%emt 0:01:11]} Rae8 {[%emt 0:02:58]} 22. Ra4 {[%emt 0:00:33]} h5 {[%emt 0:02:51][%cal Oh5h4]} 23. h4 {[%emt 0:05:26]} Qg4 {[%emt 0:01:33] [#] Strongly threatening ...Nf5.} 24. f3 {[%emt 0:11:05]} (24. Qd1 $11) 24... Qd7 {[%emt 0:00:53]} 25. e4 {[%emt 0:10:24]} dxe4 {[%emt 0:00:20]} ({Black should play} 25... f5 $17 {...f4 is the strong threat.} 26. e5 f4) 26. Nxe4 $15 {[%emt 0:02:13]} f5 {[%emt 0:05:09]} 27. Nxd6 {[%emt 0:05:48]} Rxe1 {[%emt 0:00:16]} 28. Nxe8 {[%emt 0:00:09]} Qxe8 $11 {[%emt 0:00:09][%mdl 4096] Endgame KQR-KQR} 29. Ra2 {[%emt 0:01:03]} Qe6 {[%emt 0:13:49]} 30. Rb2 {[%emt 0:02:37]} Kh8 {[%emt 0:15:17]} 31. Qf2 {[%emt 0:01:23]} b6 {[%emt 0:05:53]} 32. axb6 {[%emt 0:00:24]} axb6 {[%emt 0:00:04]} 33. d5 {[%emt 0:01:36]} ({Wrong is} 33. Rxb6 $2 Re2 34. Rb8+ Kh7 $19) 33... cxd5 {[%emt 0:00:18]} 34. Qxb6 {[%emt 0:00:23]} Qe7 {[%emt 0:02:30]} 35. Qf2 {[%emt 0:01:10]} Qe5 {[%emt 0:01:11]} 36. Qd2 {[%emt 0:00:55]} Re3 {[%emt 0:01:00]} 37. Rc2 {[%emt 0:02:54] [#] Threatens to win with Kf2.} f4 {[%emt 0:01:08]} 38. gxf4 {[%emt 0:00:02]} Qxf4 {[%emt 0:00:39]} 39. Qxd5 {[%emt 0:00:40]} Qxh4 {[%emt 0:00:13]} 40. Rd2 {[%emt 0:00:00]} Rxc3 {[%emt 0:00:00]} 41. Qd8+ {[%emt 0:00:00]} (41. Rb2 $11 {remains equal.} Rc8 42. Qf5) 41... Qxd8 $17 {[%emt 0:00:00]} 42. Rxd8+ {[%emt 0:00:00] KR-KR} Kh7 {[%emt 0:00:00]} 43. Kg3 {[%emt 0:00:00]} Kh6 {[%emt 0:00:00]} 44. Rd5 {[%emt 0:00:00]} g6 {[%emt 0:00:00][%cal Bg7g6,Bg6g5][%mdl 32]} 45. Rb5 {[%emt 0:00:00]} Rc8 {[%emt 0:00:00]} 46. Ra5 {[%emt 0:00:00]} Rf8 {[%emt 0:00:00]} 47. Rb5 {[%emt 0:00:00]} Rf6 {[%emt 0:00:00]} 48. Ra5 {[%emt 0:00:00]} g5 {[%emt 0:00:00]} 49. Ra4 {[%emt 0:00:00]} Kg6 {[%emt 0:00:00]} (49... Rd6 $17 50. f4 Rd3+ 51. Kg2 Rd2+ 52. Kg3 Rd3+ 53. Kg2 g4 54. Ra6+ Kh7) 50. Rb4 {[%emt 0:00:00]} (50. f4 $1 $11 {keeps the balance.}) 50... Re6 {[%emt 0:00:00]} 51. Rb5 Rf6 {[%emt 0:00:00]} (51... Ra6 $17 52. Rb8 h4+ 53. Kh3 Rf6 54. Rg8+ Kh6) 52. Ra5 {[%emt 0:00:00] Weighted Error Value: White=0.15 (very precise) /Black=0.13 (very precise)} (52. Rb4 $11 {was the only way to keep the balance.}) 1/2-1/2

[Event "2nd Bieszczady Chess-ch A 2022"]
[Site "Bystre"]
[Date "2022.07.20"]
[Round "4.7"]
[White "Maksimenko, Andrei Jr"]
[Black "Kasperek, Ryszard"]
[Result "1-0"]
[ECO "C41"]
[WhiteElo "1897"]
[BlackElo "2058"]
[Annotator "TA"]
[PlyCount "49"]
[EventDate "2022.07.17"]
[EventCountry "POL"]
[SourceTitle "playchess.com"]
[Source "ChessBase"]
[SourceQuality "1"]
[TimeControl "5400+30"]

{[%evp 16,49,42,27,54,28,34,34,31,34,26,27,26,29,36,31,97,100,89,91,127,111,144,144,137,111,104,74,80,64,64,66,60,70,622,594]} 1. e4 {[%emt 0:02:28]} d6 {[%emt 0:00:43]} 2. d4 {[%emt 0:00:31]} Nf6 {[%emt 0:00:39]} 3. Nc3 {[%emt 0:01:14]} e5 {[%emt 0:00:56]} 4. Nf3 {[%emt 0:02:12]} Nbd7 {[%emt 0:00:07]} 5. Bc4 {[%emt 0:01:31]} Be7 {[%emt 0:04:59]} 6. a4 {[%emt 0:01:37]} O-O {[%emt 0:08:40]} 7. O-O {[%emt 0:01:14]} c6 {[%emt 0:00:10]} 8. h3 {[%emt 0:11:53]} b6 {[%emt 0:05:19] 8...h6 is more advanced technology.} 9. Be3 {[%emt 0:05:09]} Rb8 {[%emt 0:17:07] C41: Philidor Defence.} 10. Re1 {[%emt 0:06:17]} a6 {[%emt 0:01:39]} 11. Ba2 {[%emt 0:03:49]} b5 {[%emt 0:02:57] White is slightly better.} 12. axb5 {[%emt 0:01:42]} axb5 {[%emt 0:00:06]} 13. b4 {[%emt 0:03:46]} Qc7 {[%emt 0:09:52]} 14. Bb3 {[%emt 0:06:08]} Nb6 {[%emt 0:05:40]} 15. Qd3 {[%emt 0:03:35]} Be6 {[%emt 0:15:32] [#]} ({Better is} 15... Re8 $14) 16. Bxe6 $1 $16 {[%emt 0:04:01]} fxe6 {[%emt 0:00:05] [#]} 17. Ng5 $1 {[%emt 0:03:58] [#]} exd4 $146 {[%emt 0:07:26]} ({Predecessor:} 17... Qc8 18. Ra7 Re8 19. d5 Nbxd5 20. exd5 exd5 21. Bd2 h6 22. Nf3 e4 23. Qe3 Rb7 24. Rxb7 Qxb7 {½-½ (51) Velicka,P (2472)-Kasparov,S (2521) Krakow 2012}) 18. Nxe6 {[%emt 0:14:53]} Qc8 {[%emt 0:01:55]} 19. Nxd4 {[%emt 0:00:07]} ({And not} 19. Nxf8 dxe3 20. Qxe3 (20. e5 $2 exf2+ 21. Kxf2 dxe5 $19) 20... Qxf8 $17) 19... d5 {[%emt 0:04:47]} 20. Nf5 {[%emt 0:10:24]} Bxb4 {[%emt 0:00:32] Strongly threatening ...dxe4.} 21. Bxb6 {[%emt 0:05:34] 0x0.001680d2a4eadp-1022s more active pieces.} dxe4 {[%emt 0:00:50] [#]} 22. Nxe4 {[%emt 0:03:45]} Qxf5 {[%emt 0:01:40]} 23. Nxf6+ $1 {[%emt 0:00:52]} Qxf6 {[%emt 0:00:07]} 24. Bd4 {[%emt 0:00:15]} Qf4 {[%emt 0:06:03][%mdl 8192]} (24... Qf7 $14) 25. Qb3+ {[%emt 0:00:21] Weighted Error Value: White=0.05 (flawless) /Black=0.57} 1-0

[Event "2nd Bieszczady Chess-ch A 2022"]
[Site "Bystre"]
[Date "2022.07.20"]
[Round "4.8"]
[White "Hnatyshyn, Anastasiya"]
[Black "Kopacz, Lukasz"]
[Result "*"]
[ECO "B76"]
[WhiteElo "1931"]
[BlackElo "1821"]
[Annotator "TA"]
[PlyCount "42"]
[EventDate "2022.07.17"]
[EventCountry "POL"]
[SourceTitle "playchess.com"]
[Source "ChessBase"]
[SourceQuality "1"]
[TimeControl "5400+30"]

{[%evp 24,29,43,37,87,91,92,112]} 1. e4 {[%emt 0:00:12]} c5 {[%emt 0:06:12]} 2. Nf3 d6 {[%emt 0:01:42]} 3. d4 {[%emt 0:00:12]} cxd4 {[%emt 0:00:03]} 4. Nxd4 Nf6 {[%emt 0:00:05]} 5. Nc3 {[%emt 0:00:12]} g6 {[%emt 0:07:58]} 6. Be3 {[%emt 0:00:11]} Bg7 {[%emt 0:00:06]} 7. f3 {[%emt 0:00:07]} O-O {[%emt 0:00:25]} 8. Qd2 {[%emt 0:00:06]} Nc6 {[%emt 0:00:05]} 9. O-O-O {[%emt 0:00:10]} d5 {[%emt 0:01:04]} 10. exd5 {[%emt 0:00:07]} Nxd5 {[%emt 0:00:04]} 11. Nxc6 {[%emt 0:00:06]} bxc6 {[%emt 0:00:07]} 12. Bd4 {[%emt 0:00:05]} Nxc3 {[%emt 0:05:50]} 13. Qxc3 {[%emt 0:00:07]} Bxd4 {[%emt 0:01:14] B76: Sicilian Dragon: Yugoslav Attack, 9 g4 and 9 0-0-0.} ({Better is} 13... Bh6+ $14 14. Be3 Bxe3+ 15. Qxe3 Qa5) 14. Rxd4 $16 {[%emt 0:00:06]} Qb6 {[%emt 0:00:28]} 15. h4 {[%emt 0:00:48] [#]} {Predecessor:} Ba6 $146 16. Bxa6 Qxa6 17. a3 Qe2 18. g4 Rad8 19. Re4 Qg2 20. Rhe1 e6 21. h5 Qh2 {1-0 (79) Daroczi,D (2220)-Anishka,V (1805) Budapest 2021} *